bitfinex/quotes_BTCUSD_20240613
["timestamp","ask_amount","ask_price","bid_price","bid_amount"]
[1718300410315,1e-08,66866.0,66865.0,3.27237145]
[1718300410530,1e-08,66866.0,66865.0,3.40977145]
[1718300410736,1e-08,66866.0,66865.0,3.52277145]
[1718300410941,1e-08,66866.0,66865.0,3.38773093]
[1718300411147,1e-08,66866.0,66865.0,3.40073093]
[1718300411358,1e-08,66866.0,66865.0,3.38773093]
[1718300411562,1e-08,66866.0,66865.0,3.13149063]
[1718300411770,1e-08,66866.0,66865.0,3.03378063]
[1718300411971,1e-08,66866.0,66865.0,3.28032093]
[1718300412171,1e-08,66866.0,66865.0,3.33032093]
[1718300412372,1e-08,66866.0,66865.0,3.38032093]
[1718300412506,1e-08,66866.0,66865.0,3.39332093]
[1718300412720,1e-08,66866.0,66865.0,3.51735223]
[1718300412921,17.38275,66888.0,66865.0,3.51735223]
[1718300412922,17.38275,66888.0,66887.0,1.054373]
[1718300413290,17.38275,66888.0,66887.0,1.31169293]
[1718300413401,17.38275,66888.0,66887.0,1.91074493]
[1718300413610,17.38275,66888.0,66887.0,1.81594093]
[1718300414035,17.38275,66888.0,66887.0,1.83223993]
[1718300415242,17.38275,66888.0,66887.0,1.89202193]
[1718300415648,17.38275,66888.0,66887.0,1.90502193]
[1718300415884,17.38275,66888.0,66887.0,1.91802193]
[1718300416079,17.38275,66888.0,66887.0,1.41071093]
[1718300416285,17.38275,66888.0,66887.0,1.12845393]
[1718300416734,17.38275,66888.0,66887.0,1.66462493]
[1718300416934,17.38275,66888.0,66887.0,1.61794393]
[1718300417137,17.38275,66888.0,66887.0,1.42746493]
[1718300417278,17.38275,66888.0,66887.0,1.12845393]
[1718300417722,17.38275,66888.0,66887.0,1.93678393]
[1718300418463,17.38275,66888.0,66887.0,2.06078759]
[1718300418636,17.38275,66888.0,66887.0,1.75162693]
[1718300418850,17.38275,66888.0,66887.0,1.13060493]
[1718300419060,17.44755,66888.0,66887.0,0.385782]
[1718300419482,17.44755,66888.0,66887.0,0.535287]
[1718300419892,17.44755,66888.0,66887.0,0.552133]
[1718300420102,17.44755,66888.0,66887.0,0.838144]
[1718300420527,17.38275,66888.0,66887.0,1.93612793]
[1718300420733,17.34781459,66888.0,66887.0,2.43506494]
[1718300420935,17.34781459,66888.0,66887.0,2.7450489]
[1718300421135,17.34781459,66888.0,66887.0,3.8931079]
[1718300421338,17.34781459,66888.0,66887.0,3.8054069]
[1718300421496,17.34781459,66888.0,66887.0,3.66839789]
[1718300421699,17.34781459,66888.0,66887.0,3.68139789]
[1718300421908,17.34781459,66888.0,66887.0,3.10888389]
[1718300422111,17.34781459,66888.0,66887.0,2.03799793]
[1718300422335,17.34781459,66888.0,66887.0,1.01660693]
[1718300422716,17.40881459,66888.0,66887.0,0.872287]
[1718300423378,17.40881459,66888.0,66887.0,0.859287]
[1718300423795,17.40881459,66888.0,66887.0,0.872287]
[1718300424000,17.40881459,66888.0,66887.0,0.185782]
[1718300424201,17.49151459,66888.0,66887.0,0.013]
[1718300425171,17.49151459,66888.0,66886.0,0.149506]
[1718300425327,17.49151459,66888.0,66887.0,0.013]
[1718300425528,17.49151459,66888.0,66887.0,0.018]
[1718300426202,17.49151459,66888.0,66887.0,0.184351]
[1718300426640,17.49151459,66888.0,66887.0,0.71867093]
[1718300426886,17.49151459,66888.0,66887.0,1.31669293]
[1718300426887,17.34781459,66888.0,66887.0,1.31669293]
[1718300427099,17.34781459,66888.0,66887.0,1.32969293]
[1718300427800,17.34781459,66888.0,66887.0,1.31169293]
[1718300428016,17.34781459,66888.0,66887.0,1.63972415]
[1718300428234,17.34781459,66888.0,66887.0,1.34071315]
[1718300428669,17.34781459,66888.0,66887.0,1.32771315]
[1718300428900,17.34781459,66888.0,66887.0,0.63953622]
[1718300429149,17.34781459,66888.0,66883.0,0.059793]
[1718300429353,0.1398,66887.0,66881.0,0.016846]
[1718300429552,0.1398,66887.0,66882.0,0.149515]
[1718300430260,0.0661,66886.0,66882.0,0.149515]
[1718300430463,0.0661,66886.0,66881.0,0.016846]
[1718300430689,0.0661,66886.0,66882.0,0.149516]
[1718300430888,0.0661,66886.0,66880.0,0.016846]
[1718300430889,0.0661,66886.0,66883.0,0.1]
[1718300431040,0.0661,66886.0,66883.0,0.01]
[1718300431444,0.0661,66886.0,66882.0,0.013]
[1718300431445,0.0661,66886.0,66882.0,0.162516]
[1718300431688,0.0661,66886.0,66883.0,0.1]
[1718300432124,0.0658,66884.0,66882.0,0.013]
[1718300432337,0.1462,66883.0,66882.0,0.013]
[1718300432555,0.0817,66881.0,66869.0,0.4728]
[1718300432770,0.0603,66880.0,66874.0,0.0598]
[1718300433175,0.0603,66880.0,66867.0,0.2]
[1718300433176,0.0603,66880.0,66871.0,0.016846]
[1718300433380,0.0603,66880.0,66874.0,0.149533]
[1718300433586,0.0603,66880.0,66870.0,0.0598]
[1718300433800,0.0624,66878.0,66871.0,0.3269841]
[1718300434003,0.0624,66878.0,66871.0,0.016846]
[1718300434208,0.0624,66878.0,66872.0,0.31013814]
[1718300434455,0.0624,66878.0,66871.0,0.016846]
[1718300434636,0.0821,66877.0,66871.0,0.013]
[1718300434861,0.0637,66876.0,66871.0,0.013]
[1718300435073,0.0821,66875.0,66869.0,0.159805]
[1718300435275,0.0637,66874.0,66873.0,0.07215996]
[1718300435492,0.0637,66874.0,66873.0,0.22169696]
[1718300435710,0.0637,66874.0,66873.0,0.07215996]
[1718300437193,0.0637,66874.0,66873.0,0.23854296]
[1718300437407,0.0637,66874.0,66873.0,0.54866901]
[1718300437637,0.001,66874.0,66873.0,1.00306294]
[1718300437917,0.001,66874.0,66873.0,2.36747894]
[1718300438107,0.001,66874.0,66873.0,2.45817894]
[1718300438568,0.001,66874.0,66873.0,2.48816894]
[1718300439012,0.001,66874.0,66873.0,2.94644894]
[1718300439233,17.34781459,66888.0,66887.0,0.465362]
[1718300439458,17.34781459,66888.0,66887.0,1.01980798]
[1718300440015,17.34781459,66888.0,66887.0,1.31881898]
[1718300440620,17.34781459,66888.0,66887.0,1.34173094]
[1718300440823,17.34781459,66888.0,66887.0,0.73270894]
[1718300442109,17.34781459,66888.0,66887.0,0.74170894]
[1718300443411,17.34781459,66888.0,66887.0,0.75981122]
[1718300444618,17.34781459,66888.0,66887.0,0.61549129]
[1718300445262,17.34781459,66888.0,66887.0,0.43103801]
[1718300445263,17.40821459,66888.0,66887.0,0.43103801]
[1718300445492,17.48531459,66888.0,66887.0,0.137846]
[1718300445680,17.48531459,66888.0,66887.0,0.187351]
[1718300445866,17.48531459,66888.0,66887.0,0.270505]
[1718300446266,17.48531459,66888.0,66887.0,0.287351]
[1718300447488,17.48531459,66888.0,66887.0,0.121]
[1718300447662,17.48531459,66888.0,66887.0,0.021]
[1718300448098,17.48531459,66888.0,66887.0,0.170505]
[1718300448307,17.48531459,66888.0,66887.0,0.270505]
[1718300448524,17.48531459,66888.0,66887.0,0.121]
[1718300448949,17.48626059,66888.0,66887.0,0.121]
[1718300449353,17.48626059,66888.0,66887.0,0.021]
[1718300450764,17.34876059,66888.0,66876.0,0.1]
[1718300450972,0.065,66881.0,66876.0,0.1]
[1718300451169,0.065,66881.0,66875.0,0.4728]
[1718300451170,0.075,66880.0,66875.0,0.4728]
[1718300451396,0.0606,66879.0,66877.0,0.00454683]
[1718300451608,0.1,66887.0,66875.0,0.4728]
[1718300451609,0.1356,66878.0,66875.0,0.4728]
[1718300451826,0.0606,66877.0,66875.0,0.4728]
[1718300452049,0.0606,66877.0,66876.0,0.011]
[1718300452257,0.0606,66877.0,66876.0,0.01554683]
[1718300452884,0.0606,66877.0,66876.0,0.08770679]
[1718300453130,0.0606,66877.0,66876.0,0.01554683]
[1718300453538,0.0606,66877.0,66876.0,0.00454683]
[1718300454429,0.06045229,66877.0,66876.0,0.00454683]
[1718300454836,0.06045229,66877.0,66876.0,0.01554683]
[1718300455315,0.06045229,66877.0,66876.0,0.00454683]
[1718300455730,0.06045229,66877.0,66876.0,0.01054683]
[1718300456057,0.06045229,66877.0,66876.0,0.00454683]
[1718300456608,0.1771,66886.0,66876.0,0.00454683]
[1718300456609,0.0794,66886.0,66885.0,0.14951]
[1718300456825,0.0794,66886.0,66885.0,0.166356]
[1718300457468,17.34876059,66888.0,66887.0,0.166351]
[1718300457673,17.34876059,66888.0,66887.0,0.149505]
[1718300457884,17.34876059,66888.0,66885.0,0.003]
[1718300458265,17.34876059,66888.0,66885.0,0.166354]
[1718300458409,17.34876059,66888.0,66887.0,0.149505]
[1718300458607,17.34876059,66888.0,66887.0,0.160505]
[1718300459719,17.34876059,66888.0,66887.0,0.177351]
[1718300460103,17.34976059,66888.0,66887.0,0.185351]
[1718300460293,17.34876059,66888.0,66887.0,0.177351]
[1718300460420,17.34876059,66888.0,66887.0,0.166351]
[1718300460668,17.34976059,66888.0,66887.0,0.174351]
[1718300461318,17.34976059,66888.0,66887.0,0.157505]
[1718300461487,17.34976059,66888.0,66887.0,0.008]
[1718300461689,17.34976059,66888.0,66887.0,0.166505]
[1718300461923,17.34876059,66888.0,66887.0,0.158505]
[1718300462124,17.34876059,66888.0,66887.0,0.009]
[1718300462361,17.34876059,66888.0,66887.0,0.170351]
[1718300462699,17.34876059,66888.0,66887.0,0.31867093]
[1718300462874,17.34876059,66888.0,66887.0,0.92772501]
[1718300463076,17.34876059,66888.0,66887.0,1.33673601]
[1718300463077,17.34976059,66888.0,66887.0,1.33673601]
[1718300463294,17.34876059,66888.0,66887.0,1.32673601]
[1718300463615,17.35276059,66888.0,66887.0,1.32673601]
[1718300463878,17.35276059,66888.0,66887.0,1.31873601]
[1718300464231,17.35276059,66888.0,66887.0,1.32273601]
[1718300464659,17.35276059,66888.0,66887.0,1.38964223]
[1718300464868,17.35276059,66888.0,66887.0,1.38564223]
[1718300465080,17.35276059,66888.0,66887.0,0.62102343]
[1718300465081,17.41576059,66888.0,66887.0,0.62102343]
[1718300465412,17.35276059,66888.0,66887.0,0.8784047]
[1718300465664,17.35276059,66888.0,66887.0,0.92303469]
[1718300465833,17.35276059,66888.0,66887.0,0.62402566]
[1718300466046,17.35276059,66888.0,66887.0,0.269351]
[1718300466257,17.35276059,66888.0,66887.0,0.59733163]
[1718300466473,17.35276059,66888.0,66887.0,0.269351]
[1718300466685,17.35276059,66888.0,66887.0,0.57940234]
[1718300466951,17.35276059,66888.0,66887.0,0.62404398]
[1718300467162,17.35276059,66888.0,66887.0,1.06737491]
[1718300467385,17.35276059,66888.0,66887.0,1.02273327]
[1718300467617,17.35276059,66888.0,66887.0,1.08969573]
[1718300468524,17.35276059,66888.0,66887.0,0.72372227]
[1718300468731,17.35276059,66888.0,66887.0,0.41367093]
[1718300468941,17.35276059,66888.0,66887.0,0.48005386]
[1718300469163,17.41506059,66888.0,66887.0,0.103]
[1718300469382,17.49136059,66888.0,66887.0,0.003]
[1718300469660,17.48736059,66888.0,66887.0,0.003]
[1718300470160,17.48736059,66888.0,66887.0,0.008]
[1718300470881,17.48736059,66888.0,66887.0,0.005]
[1718300471097,17.48736059,66888.0,66887.0,0.016]
[1718300471439,17.48736059,66888.0,66887.0,0.011]
[1718300471647,17.48736059,66888.0,66881.0,0.149517]
[1718300471849,17.50036059,66888.0,66887.0,0.001]
[1718300472043,17.48736059,66888.0,66882.0,0.149516]
[1718300472250,17.48736059,66888.0,66883.0,0.016846]
[1718300472488,17.48736059,66888.0,66881.0,0.01794183]
[1718300472728,17.48736059,66888.0,66881.0,0.016846]
[1718300472949,17.49936059,66888.0,66887.0,0.001]
[1718300473126,17.48736059,66888.0,66882.0,0.01794183]
[1718300473538,17.48736059,66888.0,66883.0,0.149513]
[1718300473539,17.48936059,66888.0,66883.0,0.149513]
[1718300473744,17.48936059,66888.0,66880.0,0.16746083]
[1718300473944,17.48936059,66888.0,66881.0,0.103]
[1718300474148,17.48936059,66888.0,66873.0,0.00086]
[1718300474149,0.1423,66886.0,66873.0,0.00086]
[1718300474347,0.1423,66876.0,66873.0,0.00086]
[1718300474793,0.1423,66876.0,66875.0,0.47736278]
[1718300477598,0.1423,66876.0,66875.0,0.48436278]
[1718300479213,0.1423,66876.0,66875.0,0.01156278]
[1718300481253,0.1423,66876.0,66875.0,0.007]
[1718300481408,0.1423,66876.0,66875.0,0.00786]
[1718300481786,0.1423,66876.0,66875.0,0.13652949]
[1718300482202,0.1423,66876.0,66875.0,0.01246259]
[1718300484327,0.29183,66876.0,66875.0,0.01246259]
[1718300484964,0.29183,66876.0,66875.0,0.00786]
[1718300485189,0.71324993,66876.0,66875.0,0.00786]
[1718300485396,0.61324993,66876.0,66875.0,0.00786]
[1718300485608,0.61324993,66876.0,66875.0,0.00086]
[1718300485609,0.71324993,66876.0,66875.0,0.00086]
[1718300486034,0.72724993,66876.0,66875.0,0.00186]
[1718300486479,0.71324993,66876.0,66875.0,0.00086]
[1718300486713,0.61324993,66876.0,66875.0,0.00086]
[1718300486966,0.62724993,66876.0,66875.0,0.00186]
[1718300487983,0.62724993,66876.0,66875.0,0.00286]
[1718300488503,0.62724993,66876.0,66875.0,0.00186]
[1718300488961,0.61324993,66876.0,66875.0,0.00186]
[1718300489469,0.62724993,66876.0,66875.0,0.00286]
[1718300489727,0.62724993,66876.0,66875.0,0.00186]
[1718300489728,0.61324993,66876.0,66875.0,0.00186]
[1718300490225,0.62724993,66876.0,66875.0,0.00186]
[1718300490668,0.62724993,66876.0,66875.0,0.00286]
[1718300491123,0.62724993,66876.0,66875.0,0.00186]
[1718300491540,0.62724993,66876.0,66875.0,0.00286]
[1718300493611,0.014,66876.0,66875.0,0.00286]
[1718300493829,0.014,66876.0,66875.0,0.152392]
[1718300494032,0.014,66876.0,66875.0,0.00755364]
[1718300494237,0.014,66876.0,66875.0,0.152392]
[1718300494638,0.014,66876.0,66875.0,0.15708564]
[1718300494843,0.014,66876.0,66875.0,0.15608564]
[1718300495263,0.014,66876.0,66875.0,0.00755364]
[1718300495467,0.0607,66880.0,66875.0,0.00655364]
[1718300496033,0.0607,66880.0,66875.0,0.00755364]
[1718300496034,0.014,66876.0,66875.0,0.00755364]
[1718300496472,0.014,66876.0,66875.0,0.00655364]
[1718300496938,0.0607,66880.0,66875.0,0.00555364]
[1718300497161,0.0747,66880.0,66875.0,0.00655364]
[1718300497631,0.0607,66880.0,66875.0,0.00555364]
[1718300497837,0.14953,66876.0,66875.0,0.00555364]
[1718300498225,0.43384993,66876.0,66875.0,0.00086]
[1718300498421,0.50494492,66876.0,66875.0,0.00555364]
[1718300498625,0.50494492,66876.0,66875.0,0.00086]
[1718300498952,0.43384993,66876.0,66875.0,0.00086]
[1718300499563,0.53384993,66876.0,66875.0,0.00086]
[1718300499759,0.44684993,66876.0,66875.0,0.00186]
[1718300501002,0.54684993,66876.0,66875.0,0.00186]
[1718300501768,0.62183756,66876.0,66875.0,0.00186]
[1718300503162,0.62585334,66876.0,66875.0,0.00286]
[1718300503585,0.62185334,66876.0,66875.0,0.00186]
[1718300504055,0.62585334,66876.0,66875.0,0.00286]
[1718300504262,0.78996386,66876.0,66875.0,0.00186]
[1718300504466,0.78596386,66876.0,66875.0,0.00086]
[1718300504677,0.79996386,66876.0,66875.0,0.00086]
[1718300505490,0.78596386,66876.0,66875.0,0.00086]
[1718300505908,0.79996386,66876.0,66875.0,0.00086]
[1718300506111,0.80396386,66876.0,66875.0,0.00186]
[1718300506548,0.90953296,66876.0,66875.0,0.00186]
[1718300506760,0.98056155,66876.0,66875.0,0.00086]
[1718300507171,0.85397852,66876.0,66875.0,0.00186]
[1718300507387,0.99737852,66876.0,66875.0,0.00186]
[1718300507595,0.99337852,66876.0,66875.0,0.00086]
[1718300507856,1.00742572,66876.0,66875.0,0.00086]
[1718300508062,1.02042572,66876.0,66875.0,0.00186]
[1718300508480,1.03442572,66876.0,66875.0,0.00186]
[1718300508687,1.02042572,66876.0,66875.0,0.00186]
[1718300508905,1.02042727,66876.0,66875.0,0.00186]
[1718300509121,0.85732727,66876.0,66875.0,0.00186]
[1718300509348,1.03442727,66876.0,66875.0,0.00186]
[1718300510210,1.03443623,66876.0,66875.0,0.00186]
[1718300510447,0.85403623,66876.0,66875.0,0.00186]
[1718300510891,0.85403817,66876.0,66875.0,0.00186]
[1718300511102,0.87457352,66876.0,66875.0,0.00186]
[1718300512595,0.69747352,66876.0,66875.0,0.00186]
[1718300512827,0.84948528,66876.0,66875.0,0.00186]
[1718300513038,0.87455371,66876.0,66875.0,0.00186]
[1718300514490,0.87456055,66876.0,66875.0,0.00186]
[1718300514863,0.87456056,66876.0,66875.0,0.00186]
[1718300515907,0.87455084,66876.0,66875.0,0.00186]
[1718300516342,1.0319482,66876.0,66875.0,0.00186]
[1718300517906,1.00688528,66876.0,66875.0,0.00186]
[1718300518128,1.03194576,66876.0,66875.0,0.00186]
[1718300518792,1.03194683,66876.0,66875.0,0.00186]
[1718300519505,1.0319486,66876.0,66875.0,0.00186]
[1718300519887,0.88241751,66876.0,66875.0,0.00186]
[1718300520092,0.88213632,66876.0,66875.0,0.00186]
[1718300520804,0.85707409,66876.0,66875.0,0.00186]
[1718300521065,0.88215354,66876.0,66875.0,0.00186]
[1718300521780,0.81161819,66876.0,66875.0,0.00186]
[1718300522052,0.86162296,66876.0,66875.0,0.00186]
[1718300522878,0.83653874,66876.0,66875.0,0.00186]
[1718300523115,0.86162627,66876.0,66875.0,0.00186]
[1718300524797,0.83653874,66876.0,66875.0,0.00186]
[1718300525010,0.86163002,66876.0,66875.0,0.00186]
[1718300525442,0.55423002,66876.0,66875.0,0.00186]
[1718300525642,0.39502258,66876.0,66875.0,0.00186]
[1718300525888,0.5470313,66876.0,66875.0,0.00186]
[1718300527643,0.57208596,66876.0,66875.0,0.00186]
[1718300527925,0.5470313,66876.0,66875.0,0.00186]
[1718300528126,0.57208605,66876.0,66875.0,0.00186]
[1718300528977,0.5470313,66876.0,66875.0,0.00186]
[1718300529192,0.43238087,66876.0,66875.0,0.00186]
[1718300530001,0.43238117,66876.0,66875.0,0.00186]
[1718300530198,0.38238117,66876.0,66875.0,0.00186]
[1718300530540,0.43239845,66876.0,66875.0,0.00186]
[1718300530772,0.06097852,66876.0,66875.0,0.00186]
[1718300530957,0.018,66876.0,66875.0,0.00186]
[1718300531155,0.018,66876.0,66875.0,0.00635123]
[1718300531916,0.05,66885.0,66875.0,0.00535123]
[1718300532128,0.004,66876.0,66875.0,0.00635123]
[1718300532247,0.018,66876.0,66875.0,0.00186]
[1718300532783,0.014,66876.0,66875.0,0.00086]
[1718300532981,0.014,66876.0,66875.0,0.167238]
[1718300533190,0.018,66876.0,66875.0,0.168238]
[1718300533392,0.018,66876.0,66875.0,0.231838]
[1718300535555,0.018,66876.0,66875.0,0.214992]
[1718300535726,0.018,66876.0,66875.0,0.231838]
[1718300536122,0.018,66876.0,66875.0,0.609403]
[1718300536123,0.014,66876.0,66875.0,0.609403]
[1718300536338,0.014,66876.0,66875.0,1.2704953]
[1718300536570,0.018,66876.0,66875.0,1.73492033]
[1718300537018,0.018,66876.0,66875.0,1.84659235]
[1718300537181,0.004,66876.0,66875.0,1.73490901]
[1718300537408,0.004,66876.0,66875.0,1.52514805]
[1718300537621,0.015,66876.0,66875.0,1.42584401]
[1718300537829,0.011,66876.0,66875.0,0.32282198]
[1718300538030,17.34876059,66888.0,66875.0,0.24396]
[1718300538311,0.14431993,66887.0,66877.0,0.149526]
[1718300538523,0.14233571,66887.0,66880.0,0.14952]
[1718300538858,0.14233571,66887.0,66876.0,0.166375]
[1718300539052,0.14233571,66887.0,66877.0,0.1]
[1718300539250,0.14233571,66887.0,66878.0,0.016846]
[1718300539887,0.14233571,66887.0,66879.0,0.166369]
[1718300540089,0.14233571,66887.0,66879.0,0.149523]
[1718300540306,0.14233571,66887.0,66877.0,0.1]
[1718300540515,0.31943571,66887.0,66875.0,0.00086]
[1718300540733,0.32714994,66887.0,66875.0,0.00086]
[1718300540956,0.32714994,66887.0,66879.0,0.0626]
[1718300541193,0.32314994,66887.0,66879.0,0.0626]
[1718300541891,0.14604994,66887.0,66879.0,0.0626]
[1718300542324,0.15704994,66887.0,66879.0,0.0626]
[1718300543108,0.15704994,66887.0,66879.0,0.212122]
[1718300543333,0.15704994,66887.0,66879.0,0.0626]
[1718300543546,0.15704994,66887.0,66880.0,0.016846]
[1718300543732,0.15704994,66887.0,66879.0,0.0626]
[1718300544075,0.011,66887.0,66884.0,0.016846]
[1718300544259,0.011,66887.0,66883.0,0.016846]
[1718300544467,0.011,66887.0,66879.0,0.212123]
[1718300544900,0.015,66887.0,66879.0,0.212123]
[1718300545115,0.004,66887.0,66879.0,0.212123]
[1718300545530,0.018,66887.0,66879.0,0.212123]
[1718300545732,0.004,66887.0,66879.0,0.212123]
[1718300545941,0.004,66887.0,66879.0,0.212983]
[1718300546150,0.004,66887.0,66880.0,0.016846]
[1718300546355,0.004,66887.0,66879.0,0.212983]
[1718300546356,0.004946,66887.0,66879.0,0.06346]
[1718300546968,0.004946,66887.0,66881.0,0.166363]
[1718300547182,0.000946,66887.0,66881.0,0.166363]
[1718300547395,0.011946,66887.0,66879.0,0.06346]
[1718300547620,0.015946,66887.0,66880.0,0.12405183]
[1718300547858,0.015946,66887.0,66879.0,0.00086]
[1718300547859,0.081246,66887.0,66879.0,0.00086]
[1718300548079,0.077246,66887.0,66879.0,0.00086]
[1718300548527,0.081246,66887.0,66879.0,0.00086]
[1718300548981,0.077246,66887.0,66879.0,0.00086]
[1718300549197,0.14431993,66886.0,66879.0,0.00086]
[1718300550369,0.14403874,66886.0,66879.0,0.00086]
[1718300551030,0.15503874,66886.0,66879.0,0.00086]
[1718300551439,0.15903874,66886.0,66879.0,0.00086]
[1718300554865,0.1,66885.0,66879.0,0.00086]
[1718300555055,0.1771,66880.0,66879.0,0.00086]
[1718300555262,0.38331993,66880.0,66879.0,0.00086]
[1718300557843,0.39131993,66880.0,66879.0,0.00186]
[1718300558133,0.40531993,66880.0,66879.0,0.00186]
[1718300560176,0.50531993,66880.0,66879.0,0.00186]
[1718300560350,0.66370678,66880.0,66879.0,0.00186]
[1718300561151,0.56370678,66880.0,66879.0,0.00186]
[1718300561364,0.63851993,66880.0,66879.0,0.00186]
[1718300561769,0.66370939,66880.0,66879.0,0.00186]
[1718300561969,0.63851993,66880.0,66879.0,0.00186]
[1718300562169,0.53851993,66880.0,66879.0,0.00186]
[1718300562643,0.63851993,66880.0,66879.0,0.00186]
[1718300565317,0.46141993,66880.0,66879.0,0.00186]
[1718300565516,0.63851993,66880.0,66879.0,0.00186]
[1718300568044,0.145,66864.0,66856.0,0.005982]
[1718300568285,0.1,66862.0,66856.0,0.005982]
[1718300568536,0.21953973,66863.0,66850.0,0.4728]
[1718300568537,0.1771,66857.0,66850.0,0.4728]
[1718300568756,0.14431993,66856.0,66850.0,0.4728]
[1718300570455,0.14403874,66856.0,66850.0,0.4728]
[1718300571079,0.1771,66851.0,66837.0,0.1465]
[1718300571195,0.14431993,66850.0,66841.0,0.00177019]
[1718300571407,0.14431993,66850.0,66838.0,0.12412565]
[1718300571615,0.14431993,66850.0,66837.0,0.14827019]
[1718300571819,0.14431993,66850.0,66838.0,0.12412739]
[1718300572036,0.14431993,66850.0,66837.0,0.1465]
[1718300572457,0.24354974,66850.0,66837.0,0.1465]
[1718300572669,0.0621,66844.0,66830.0,0.1377]
[1718300572881,0.14431993,66843.0,66830.0,0.1377]
[1718300573499,0.24254974,66843.0,66830.0,0.0758]
[1718300573716,0.1771,66839.0,66826.0,0.1463]
[1718300573914,0.14431993,66838.0,66826.0,0.1463]
[1718300574566,0.14431993,66838.0,66837.0,0.008]
[1718300575073,0.14431993,66838.0,66826.0,0.1463]
[1718300575293,0.14531993,66838.0,66827.0,0.00426487]
[1718300575755,0.14531993,66838.0,66827.0,0.00603506]
[1718300575976,0.14531993,66838.0,66829.0,0.00177019]
[1718300576197,0.14431993,66838.0,66829.0,0.00177019]
[1718300576406,0.14431993,66838.0,66830.0,0.00426487]
[1718300576621,0.14531993,66838.0,66830.0,0.00426487]
[1718300577534,0.002,66838.0,66837.0,0.00177019]
[1718300577741,0.002,66838.0,66837.0,0.214617]
[1718300577995,0.01814817,66850.0,66837.0,0.07112622]
[1718300578209,0.001,66838.0,66837.0,0.07112622]
[1718300578423,0.002,66838.0,66837.0,0.07112622]
[1718300578637,0.001,66838.0,66837.0,0.00435603]
[1718300578848,0.1771,66845.0,66837.0,0.00435603]
[1718300579056,0.001,66838.0,66837.0,0.008]
[1718300579496,0.001,66838.0,66837.0,0.01235203]
[1718300579916,0.14431993,66844.0,66837.0,0.00435203]
[1718300580138,0.14431993,66844.0,66836.0,0.00177019]
[1718300580547,0.14403874,66844.0,66835.0,0.146]
[1718300580763,0.14403874,66844.0,66837.0,0.00177019]
[1718300581217,0.14403874,66844.0,66836.0,0.06895203]
[1718300581218,0.14403874,66844.0,66838.0,0.00435153]
[1718300581627,0.14403874,66844.0,66836.0,0.0646]
[1718300581846,0.14403874,66844.0,66839.0,0.00435153]
[1718300582055,0.14403874,66844.0,66837.0,0.008]
[1718300582257,0.14403874,66844.0,66840.0,0.00435153]
[1718300582496,0.14403874,66844.0,66836.0,0.06637019]
[1718300582699,0.14403874,66844.0,66841.0,0.00434828]
[1718300582948,0.1771,66845.0,66842.0,0.00434828]
[1718300583172,0.1771,66849.0,66842.0,0.00434828]
[1718300583392,0.002,66844.0,66842.0,0.00434828]
[1718300583602,0.003,66844.0,66842.0,0.00434828]
[1718300584665,0.001,66844.0,66843.0,0.01861619]
[1718300584886,0.001,66844.0,66843.0,0.1413]
[1718300585098,0.004,66844.0,66841.0,0.00177019]
[1718300585315,0.00275669,66844.0,66843.0,0.00434828]
[1718300585537,0.00275669,66844.0,66841.0,0.00177019]
[1718300585538,0.0613,66849.0,66842.0,0.002]
[1718300585751,0.14431993,66848.0,66843.0,0.00434828]
[1718300585953,0.006,66844.0,66842.0,0.002]
[1718300586157,0.14431993,66848.0,66843.0,0.00611847]
[1718300586363,0.14431993,66848.0,66843.0,0.00177019]
[1718300586569,0.007,66844.0,66843.0,0.00177019]
[1718300587419,0.007,66844.0,66841.0,0.00177019]
[1718300587844,0.14431993,66848.0,66841.0,0.00177019]
[1718300588265,0.005,66844.0,66843.0,0.00177019]
[1718300588625,0.14431993,66848.0,66843.0,0.00177019]
[1718300589034,0.004,66844.0,66843.0,0.00177019]
[1718300589276,0.14431993,66848.0,66843.0,0.00177019]
[1718300589660,0.007,66844.0,66843.0,0.00177019]
[1718300590292,0.007,66844.0,66843.0,0.12688997]
[1718300591275,0.007,66844.0,66843.0,0.12688996]
[1718300591687,0.007,66844.0,66843.0,0.12511977]
[1718300591896,0.007,66844.0,66843.0,0.12511966]
[1718300592318,0.007,66844.0,66843.0,0.12945531]
[1718300592828,0.007,66844.0,66843.0,0.12945701]
[1718300593284,0.32841993,66844.0,66843.0,0.00533565]
[1718300593496,0.47531993,66844.0,66843.0,0.00533565]
[1718300593704,0.47531993,66844.0,66843.0,0.001]
[1718300594460,0.57354974,66844.0,66843.0,0.001]
[1718300595039,0.62354974,66844.0,66843.0,0.001]
[1718300595469,0.67354974,66844.0,66843.0,0.001]
[1718300596040,0.1381,66834.0,66829.0,0.00086]
[1718300596249,0.1771,66830.0,66829.0,0.00086]
[1718300596455,0.48054974,66830.0,66829.0,0.00086]
[1718300596658,0.55731585,66830.0,66829.0,0.00086]
[1718300597236,0.45908604,66830.0,66829.0,0.00086]
[1718300597641,0.55731585,66830.0,66829.0,0.00086]
[1718300598443,0.55731585,66830.0,66818.0,0.00853]
[1718300598444,0.05,66813.0,66803.0,0.02992]
[1718300598664,0.45071993,66813.0,66798.0,0.00854]
[1718300598851,0.49894974,66813.0,66798.0,0.00854]
[1718300599421,0.54894974,66813.0,66798.0,0.00854]
[1718300599888,0.37184974,66813.0,66798.0,0.00854]
[1718300600181,0.54894974,66813.0,66798.0,0.00854]
[1718300601308,0.56294974,66813.0,66798.0,0.00854]
[1718300601548,0.41471993,66813.0,66798.0,0.00854]
[1718300601791,0.41471993,66813.0,66802.0,0.00177019]
[1718300602029,0.42771993,66813.0,66812.0,0.00955]
[1718300602915,0.41471993,66813.0,66812.0,0.00855]
[1718300603348,0.42771993,66813.0,66812.0,0.00955]
[1718300604217,0.41371993,66813.0,66812.0,0.00955]
[1718300604600,0.42771993,66813.0,66812.0,0.00955]
[1718300605432,0.34841993,66813.0,66812.0,0.00955]
[1718300606875,0.36639689,66813.0,66812.0,0.00955]
[1718300611155,0.027,66813.0,66812.0,0.17783919]
[1718300611384,0.02647973,66813.0,66812.0,0.17783919]